fUSD/lending_fUSD_20241223
["ID","MTS","AMOUNT","RATE_DAILY","PERIOD"]
[346433228,1734975052314,-500.0,0.00018313,2]
[346433229,1734975052323,-500.0,0.00018313,2]
[346433230,1734975052332,-500.0,0.00018313,2]
[346433231,1734975052343,-500.0,0.00018313,2]
[346433232,1734975052352,-500.0,0.00018313,2]
[346433233,1734975052361,-587.67,0.00018313,2]
[346433234,1734975052370,-639.19,0.00018313,2]
[346433235,1734975052379,-500.0,0.00018313,2]
[346433236,1734975052389,-500.0,0.00018313,2]
[346433237,1734975052398,-500.0,0.00018313,2]
[346433238,1734975052408,-500.0,0.00018313,2]
[346433239,1734975052417,-500.0,0.00018313,2]
[346433240,1734975052426,-505.73416889,0.00018313,2]
[346433241,1734975052435,-500.0,0.00018313,2]
[346433242,1734975052444,-618.21,0.00018313,2]
[346433243,1734975052453,-500.0,0.00018313,2]
[346433244,1734975052462,-500.0,0.00018313,2]
[346433245,1734975052471,-639.22,0.00018313,2]
[346433246,1734975052480,-500.0,0.00018313,2]
[346433247,1734975052489,-500.0,0.00018313,2]
[346433248,1734975052498,-500.0,0.00018313,2]
[346433249,1734975052507,-561.6885623,0.00018313,2]
[346433250,1734975052515,-763.77,0.00018313,2]
[346433251,1734975052524,-500.0,0.00018313,2]
[346433252,1734975052533,-500.0,0.00018313,2]
[346433253,1734975052542,-514.92,0.00018313,2]
[346433254,1734975052551,-500.0,0.00018313,2]
[346433255,1734975052560,-1378.47,0.00018313,2]
[346433256,1734975052569,-500.0,0.00018313,2]
[346433257,1734975052578,-500.0,0.00018313,2]
[346433258,1734975052590,-674.55,0.00018313,2]
[346433259,1734975052599,-500.0,0.00018313,2]
[346433260,1734975052609,-500.0,0.00018313,2]
[346433261,1734975052618,-646.33,0.00018313,2]
[346433262,1734975052627,-447.9889077,0.00018313,2]
[346433263,1734975052637,-673.64,0.00018313,2]
[346433264,1734975052646,-1880.05638055,0.00018313,2]
[346433265,1734975052654,-503.08844704,0.00018313,2]
[346433266,1734975052664,-946.11,0.00018313,2]
[346433267,1734975052673,-500.0,0.00018313,2]
[346433268,1734975052682,-571.85,0.00018313,2]
[346433269,1734975052775,-500.0,0.00018313,2]
[346433270,1734975052789,-500.0,0.00018313,2]
[346433271,1734975052798,-500.0,0.00018313,2]
[346433272,1734975052807,-503.36024694,0.00018313,2]
[346433273,1734975052816,-500.0,0.00018313,2]
[346433274,1734975052825,-500.0,0.00018313,2]
[346433275,1734975052835,-500.0,0.00018313,2]
[346433276,1734975052844,-933.34,0.00018313,2]
[346433277,1734975052853,-10000.0,0.00018313,2]
[346433278,1734975052865,-500.0,0.00018313,2]
[346433279,1734975052874,-10000.0,0.00018313,2]
[346433280,1734975052883,-889.02,0.00018313,2]
[346433281,1734975052892,-500.0,0.00018313,2]
[346433282,1734975052901,-500.0,0.00018313,2]
[346433283,1734975052911,-500.0,0.00018313,2]
[346433284,1734975052920,-603.01,0.00018313,2]
[346433285,1734975052929,-500.0,0.00018313,2]
[346433286,1734975052938,-500.0,0.00018313,2]
[346433287,1734975052948,-1325.12,0.00018313,2]
[346433288,1734975052962,-505.39490859,0.00018313,2]
[346433289,1734975052976,-533.7,0.00018313,2]
[346433290,1734975052986,-500.0,0.00018313,2]
[346433291,1734975052994,-1330.92,0.00018313,2]
[346433292,1734975053003,-1844.19,0.00018313,2]
[346433293,1734975053012,-500.0,0.00018313,2]
[346433294,1734975053021,-732.93,0.00018313,2]
[346433295,1734975053031,-500.0,0.00018313,2]
[346433296,1734975053039,-500.0,0.00018313,2]
[346433297,1734975053049,-500.0,0.00018313,2]
[346433298,1734975053058,-500.0,0.00018313,2]
[346433299,1734975053067,-500.0,0.00018313,2]
[346433300,1734975053075,-500.0,0.00018313,2]
[346433301,1734975053085,-500.0,0.00018313,2]
[346433302,1734975053095,-500.0,0.00018313,2]
[346433303,1734975053104,-500.0,0.00018313,2]
[346433304,1734975053113,-500.0,0.00018313,2]
[346433305,1734975053122,-500.0,0.00018313,2]
[346433306,1734975053131,-500.0,0.00018313,2]
[346433307,1734975053140,-500.0,0.00018313,2]
[346433308,1734975053149,-500.0,0.00018313,2]
[346433309,1734975053159,-500.0,0.00018313,2]
[346433310,1734975053168,-500.0,0.00018313,2]
[346433311,1734975053177,-500.0,0.00018313,2]
[346433312,1734975053186,-500.0,0.00018313,2]
[346433313,1734975053194,-712.05,0.00018313,2]
[346433314,1734975053204,-1124.24,0.00018313,2]
[346433315,1734975053213,-558.13415939,0.00018313,2]
[346433316,1734975053223,-500.0,0.00018313,2]
[346433317,1734975053231,-500.0,0.00018313,2]
[346433318,1734975053240,-500.0,0.00018313,2]
[346433319,1734975053249,-500.0,0.00018313,2]
[346433320,1734975053258,-500.0,0.00018313,2]
[346433321,1734975053267,-500.0,0.00018313,2]
[346433322,1734975053276,-2070.39,0.00018313,2]
[346433323,1734975053286,-500.0,0.00018313,2]
[346433324,1734975053295,-1563.65,0.00018313,2]
[346433325,1734975053303,-500.0,0.00018313,2]
[346433326,1734975053312,-150.654174,0.00018314,2]
[346433327,1734975053322,-156.627051,0.00018314,2]
[346433328,1734975053331,-300.0,0.00018314,2]
[346433329,1734975053341,-300.0,0.00018314,2]
[346433330,1734975053350,-666.0,0.00018314,2]
[346433331,1734975053359,-151.0,0.00018314,2]
[346433332,1734975053367,-151.0,0.00018314,2]
[346433333,1734975053376,-151.0,0.00018314,2]
[346433334,1734975053385,-151.0,0.00018314,2]
[346433335,1734975053395,-287.990191,0.00018314,2]
[346433336,1734975053404,-287.990191,0.00018314,2]
[346433337,1734975053413,-151.0,0.00018314,2]
[346433338,1734975053422,-151.0,0.00018314,2]
[346433339,1734975053432,-1591.277946,0.00018314,2]
[346433340,1734975053441,-1591.277946,0.00018314,2]
[346433341,1734975053450,-151.0,0.00018314,2]
[346433342,1734975053459,-151.0,0.00018314,2]
[346433343,1734975053468,-151.0,0.00018314,2]
[346433344,1734975053477,-181.814851,0.00018314,2]
[346433345,1734975053486,-241.59839,0.00018314,2]
[346433346,1734975053495,-181.814851,0.00018314,2]
[346433347,1734975053504,-241.59839,0.00018314,2]
[346433348,1734975053514,-151.0,0.00018314,2]
[346433349,1734975053523,-151.0,0.00018314,2]
[346433350,1734975053532,-151.0,0.00018314,2]
[346433351,1734975053541,-151.0,0.00018314,2]
[346433352,1734975053550,-500.0,0.00018314,2]
[346433353,1734975053559,-1384.490771,0.00018314,2]
[346433354,1734975053568,-1384.490771,0.00018314,2]
[346433355,1734975053577,-314.676055,0.00018314,2]
[346433356,1734975053587,-314.676055,0.00018314,2]
[346433357,1734975053597,-1468.9784,0.00018314,2]
[346433358,1734975053606,-1468.9784,0.00018314,2]
[346433359,1734975053615,-500.0,0.00018314,2]
[346433360,1734975053624,-1727.253949,0.00018314,2]
[346433361,1734975053632,-500.0,0.00018314,2]
[346433362,1734975053642,-1727.253949,0.00018314,2]
[346433363,1734975053650,-300.0,0.00018314,2]
[346433364,1734975053659,-300.0,0.00018314,2]
[346433365,1734975053668,-378.86774927,0.00018314,2]
[346433366,1734975053677,-300.0,0.00018315,2]
[346433367,1734975053686,-300.0,0.00018315,2]
[346433368,1734975053695,-1175.324182,0.00018315,2]
[346433369,1734975053703,-1175.324182,0.00018315,2]
[346433370,1734975053712,-151.0,0.00018315,2]
[346433371,1734975053721,-151.0,0.00018315,2]
[346433372,1734975053730,-151.0,0.00018315,2]
[346433373,1734975053739,-151.0,0.00018315,2]
[346433374,1734975053748,-151.0,0.00018315,2]
[346433375,1734975053757,-151.0,0.00018315,2]
[346433376,1734975053766,-151.0,0.00018315,2]
[346433377,1734975053775,-2646.46,0.00018315,2]
[346433378,1734975053785,-935.23,0.00018315,2]
[346433379,1734975053796,-2030.22,0.00018315,2]
[346433380,1734975053805,-3207.89,0.00018315,2]
[346433381,1734975053814,-151.0,0.00018315,2]
[346433382,1734975053823,-500.0,0.00018315,2]
[346433383,1734975053832,-151.0,0.00018315,2]
[346433384,1734975053842,-2337.16,0.00018315,2]
[346433385,1734975053851,-3493.61,0.00018315,2]
[346433386,1734975053861,-151.0,0.00018315,2]
[346433387,1734975053870,-500.0,0.00018315,2]
[346433388,1734975053880,-151.0,0.00018315,2]
[346433389,1734975053889,-751.57,0.00018315,2]
[346433390,1734975053898,-500.0,0.00018315,2]
[346433391,1734975053907,-383.365117,0.00018315,2]
[346433392,1734975053917,-383.365117,0.00018315,2]
[346433393,1734975053926,-500.0,0.00018315,2]
[346433394,1734975053935,-287.990191,0.00018315,2]
[346433395,1734975053944,-383.365117,0.00018315,2]
[346433396,1734975053953,-383.365117,0.00018315,2]
[346433397,1734975053962,-287.990191,0.00018315,2]
[346433398,1734975053971,-2459.98,0.00018315,2]
[346433399,1734975053981,-172.34885,0.00018315,2]
[346433400,1734975053990,-172.34885,0.00018315,2]
[346433401,1734975053999,-3090.08,0.00018315,2]
[346433402,1734975054008,-172.34885,0.00018315,2]
[346433403,1734975054018,-172.34885,0.00018315,2]
[346433404,1734975054028,-500.0,0.00018315,2]
[346433405,1734975054037,-500.0,0.00018315,2]
[346433406,1734975054047,-500.0,0.00018315,2]
[346433407,1734975054056,-500.0,0.00018315,2]
[346433408,1734975054065,-500.0,0.00018315,2]
[346433409,1734975054074,-2229.72,0.00018315,2]
[346433410,1734975054084,-1343.63,0.00018315,2]
[346433411,1734975054097,-957.44,0.00018315,2]
[346433412,1734975054107,-3131.34,0.00018315,2]
[346433413,1734975054116,-151.0,0.00018315,2]
[346433414,1734975054126,-151.0,0.00018315,2]
[346433415,1734975054135,-3495.94,0.00018315,2]
[346433416,1734975054147,-2120.79,0.00018315,2]
[346433417,1734975054157,-2895.36,0.00018315,2]
[346433418,1734975054166,-2022.27,0.00018315,2]
[346433419,1734975054176,-684.74,0.00018315,2]
[346433420,1734975054185,-500.0,0.00018315,2]
[346433421,1734975054195,-1591.277946,0.00018315,2]
[346433422,1734975054204,-1591.277946,0.00018315,2]
[346433423,1734975054214,-1053.37,0.00018315,2]
[346433424,1734975054225,-2535.43,0.00018315,2]
[346433425,1734975054234,-1982.54,0.00018315,2]
[346433426,1734975054243,-500.0,0.00018315,2]
[346433427,1734975054253,-500.0,0.00018315,2]
[346433428,1734975054262,-500.0,0.00018315,2]
[346433429,1734975054271,-151.0,0.00018315,2]
[346433430,1734975054280,-151.0,0.00018315,2]
[346433431,1734975054289,-1656.09,0.00018315,2]
[346433432,1734975054298,-230.647829,0.00018315,2]
[346433433,1734975054307,-2393.07,0.00018315,2]
[346433434,1734975054316,-1436.74,0.00018315,2]
[346433435,1734975054324,-151.0,0.00018315,2]
[346433436,1734975054333,-2086.7,0.00018315,2]
[346433437,1734975054347,-633.15,0.00018315,2]
[346433438,1734975054356,-2430.51,0.00018315,2]
[346433439,1734975054365,-181.814851,0.00018315,2]
[346433440,1734975054374,-241.59839,0.00018315,2]
[346433441,1734975054383,-1653.86,0.00018315,2]
[346433442,1734975054392,-181.814851,0.00018315,2]
[346433443,1734975054401,-241.59839,0.00018315,2]
[346433444,1734975054410,-151.0,0.00018315,2]
[346433445,1734975054419,-308.28275337,0.00018315,2]
[346433446,1734975054428,-3619.14,0.00018315,2]
[346433447,1734975054437,-151.0,0.00018315,2]
[346433448,1734975054445,-151.0,0.00018315,2]
[346433449,1734975054454,-2025.17,0.00018315,2]
[346433450,1734975054463,-151.0,0.00018315,2]
[346433451,1734975054472,-500.0,0.00018315,2]
[346433452,1734975054480,-1587.63,0.00018315,2]
[346433453,1734975054490,-500.0,0.00018315,2]
[346433454,1734975054499,-1596.07,0.00018315,2]
[346433455,1734975054508,-1524.59,0.00018315,2]
[346433456,1734975054517,-1937.27,0.00018315,2]
[346433457,1734975054526,-4446.41,0.00018315,2]
[346433458,1734975054535,-1384.490771,0.00018315,2]
[346433459,1734975054544,-1384.490771,0.00018315,2]
[346433460,1734975054553,-2721.26,0.00018315,2]
[346433461,1734975054563,-696.58,0.00018315,2]
[346433462,1734975054572,-629.6,0.00018315,2]
[346433463,1734975054581,-1621.59,0.00018315,2]
[346433464,1734975054593,-980.16,0.00018315,2]
[346433465,1734975054602,-1578.75,0.00018315,2]
[346433466,1734975054611,-7671.53,0.00018315,2]
[346433467,1734975054619,-314.676055,0.00018315,2]
[346433468,1734975054628,-314.676062,0.00018315,2]
[346433469,1734975054638,-1280.29,0.00018315,2]
[346433470,1734975054647,-500.0,0.00018315,2]
[346433471,1734975054656,-39933.73,0.00018315,2]
[346433472,1734975054665,-1468.9784,0.00018315,2]
[346433473,1734975054673,-500.0,0.00018315,2]
[346433474,1734975054683,-1468.9784,0.00018315,2]
[346433475,1734975054692,-2097.48,0.00018315,2]
[346433476,1734975054701,-1969.61,0.00018315,2]
[346433477,1734975054710,-5852.31,0.00018315,2]
[346433478,1734975054719,-2596.21,0.00018315,2]
[346433479,1734975054728,-1579.33,0.00018315,2]
[346433480,1734975054737,-5133.34,0.00018315,2]
[346433481,1734975054746,-528.75,0.00018315,2]
[346433482,1734975054755,-752.19,0.00018315,2]
[346433483,1734975054764,-1727.253949,0.00018315,2]
[346433484,1734975054774,-3955.33,0.00018315,2]
[346433485,1734975054784,-1727.253953,0.00018315,2]
[346433486,1734975054797,-10000.0,0.00018315,2]
[346433487,1734975054806,-3347.99,0.00018315,2]
[346433488,1734975054815,-7392.39,0.00018315,2]
[346433489,1734975054824,-10000.0,0.00018315,2]
[346433490,1734975054833,-500.0,0.00018315,2]
[346433491,1734975054845,-1769.61,0.00018315,2]
[346433492,1734975054854,-1806.24,0.00018315,2]
[346433493,1734975054864,-633.73,0.00018315,2]
[346433494,1734975054873,-4054.71,0.00018315,2]
[346433495,1734975054882,-4805.85,0.00018315,2]
[346433496,1734975054892,-2722.76,0.00018315,2]
[346433497,1734975054901,-3250.36,0.00018315,2]
[346433498,1734975054909,-2206.12,0.00018315,2]
[346433499,1734975054919,-1510.47,0.00018315,2]
[346433500,1734975054927,-500.0,0.00018315,2]
[346433501,1734975054937,-9071.36,0.00018315,2]
[346433502,1734975054947,-2510.87,0.00018315,2]
[346433503,1734975054956,-2662.37,0.00018315,2]
[346433504,1734975054965,-963.34,0.00018315,2]
[346433505,1734975054974,-5518.36,0.00018315,2]
[346433506,1734975054983,-1650.9,0.00018315,2]
[346433507,1734975054992,-2356.03,0.00018315,2]
[346433508,1734975055002,-500.0,0.00018315,2]
[346433509,1734975055011,-1692.78,0.00018315,2]
[346433510,1734975055020,-27097.1557,0.00018315,2]
[346433511,1734975055031,-150.0,0.00018316,2]
[346433512,1734975055040,-193.54031051,0.00018316,2]
[346433513,1734975055049,-4948.16807626,0.00018316,2]
[346433514,1734975055059,-5535.0826821,0.00018316,2]
[346433515,1734975055068,-532.25162548,0.00018316,2]
[346433516,1734975055077,-150.0,0.0001833,2]
[346433517,1734975055087,-428.97090145,0.00018332,2]
[346433518,1734975055097,-645.59,0.00018335,2]
[346433519,1734975055107,-150.0,0.00018347,2]
[346433520,1734975055116,-150.0,0.00018351,2]
[346433521,1734975055126,-151.0,0.00018356,2]
[346433522,1734975055136,-280.758262,0.00018356,2]
[346433523,1734975055145,-151.0,0.00018356,2]
[346433524,1734975055154,-151.0,0.00018356,2]
[346433525,1734975055163,-151.0,0.00018356,2]
[346433526,1734975055173,-151.0,0.00018356,2]
[346433527,1734975055182,-151.0,0.00018356,2]
[346433528,1734975055192,-383.365117,0.00018356,2]
[346433529,1734975055201,-287.990191,0.00018356,2]
[346433530,1734975055211,-383.365117,0.00018356,2]
[346433531,1734975055220,-287.990191,0.00018356,2]
[346433532,1734975055229,-172.34885,0.00018356,2]
[346433533,1734975055239,-172.34885,0.00018356,2]
[346433534,1734975055248,-151.0,0.00018356,2]
[346433535,1734975055257,-151.0,0.00018356,2]
[346433536,1734975055267,-1591.277946,0.00018356,2]
[346433537,1734975055276,-1591.277946,0.00018356,2]
[346433538,1734975055285,-151.0,0.00018356,2]
[346433539,1734975055295,-151.0,0.00018356,2]
[346433540,1734975055304,-230.647829,0.00018356,2]
[346433541,1734975055313,-151.0,0.00018356,2]
[346433542,1734975055322,-181.814851,0.00018356,2]
[346433543,1734975055331,-181.814851,0.00018356,2]
[346433544,1734975055341,-151.0,0.00018356,2]
[346433545,1734975055350,-151.0,0.00018356,2]
[346433546,1734975055359,-151.0,0.00018356,2]
[346433547,1734975055368,-151.0,0.00018356,2]
[346433548,1734975055377,-1384.490771,0.00018356,2]
[346433549,1734975055386,-1384.490771,0.00018356,2]
[346433550,1734975055395,-1468.9784,0.00018356,2]
[346433551,1734975055405,-1468.9784,0.00018356,2]
[346433552,1734975055414,-10000.0,0.00018356,2]
[346433553,1734975055423,-10000.0,0.00018356,2]
[346433554,1734975055432,-118237.0,0.00018356,2]
[346433555,1734975055442,-86605.0,0.00018356,2]
[346433556,1734975055451,-11586.64,0.00018356,2]
[346433557,1734975055461,-150.0,0.00018358,2]
[346433558,1734975055471,-500.0,0.00018361,2]
[346433559,1734975055480,-500.0,0.00018361,2]
[346433560,1734975055489,-500.0,0.00018361,2]
[346433561,1734975055499,-1186.07,0.00018361,2]
[346433562,1734975055508,-500.0,0.00018361,2]
[346433563,1734975055518,-2724.46,0.00018361,2]
[346433564,1734975055527,-500.0,0.00018361,2]
[346433565,1734975055537,-793.75,0.00018361,2]
[346433566,1734975055546,-500.0,0.00018361,2]
[346433567,1734975055555,-578.16839612,0.00018361,2]
[346433568,1734975055564,-646.84,0.00018361,2]
[346433569,1734975055573,-500.0,0.00018361,2]
[346433570,1734975055583,-3151.64,0.00018361,2]
[346433571,1734975055595,-502.98632697,0.00018361,2]
[346433572,1734975055605,-500.91581233,0.00018361,2]
[346433573,1734975055615,-2771.63,0.00018361,2]
[346433574,1734975055624,-500.0,0.00018361,2]
[346433575,1734975055634,-3261.91,0.00018361,2]
[346433576,1734975055643,-208.8512126,0.00018361,2]
[346433577,1734975055652,-1704.0,0.00018361,2]
[346433578,1734975055661,-231.61110716,0.00018361,2]
[346433579,1734975055671,-1408.42,0.00018361,2]
[346433580,1734975055680,-500.0,0.00018361,2]
[346433581,1734975055690,-503.42569805,0.00018361,2]
[346433582,1734975055699,-500.0,0.00018361,2]
[346433583,1734975055708,-500.0,0.00018361,2]
[346433584,1734975055718,-1646.23,0.00018361,2]
[346433585,1734975055728,-500.4842734,0.00018361,2]
[346433586,1734975055737,-181.78791143,0.00018361,2]
[346433587,1734975055747,-500.0,0.00018361,2]
[346433588,1734975055757,-500.0,0.00018361,2]
[346433589,1734975055766,-500.0,0.00018361,2]
[346433590,1734975055776,-2563.15,0.00018361,2]
[346433591,1734975055786,-419.7224915,0.00018361,2]
[346433592,1734975055798,-500.0,0.00018361,2]
[346433593,1734975055808,-1310.53,0.00018361,2]
[346433594,1734975055818,-500.9966641,0.00018361,2]
[346433595,1734975055828,-203.89809909,0.00018361,2]
[346433596,1734975055842,-500.0,0.00018361,2]
[346433597,1734975055852,-1315.5,0.00018361,2]
[346433598,1734975055866,-499.79220351,0.00018361,2]
[346433599,1734975055876,-500.0,0.00018361,2]
[346433600,1734975055886,-196.33644359,0.00018361,2]
[346433601,1734975055896,-3259.16,0.00018361,2]
[346433602,1734975055906,-500.0,0.00018361,2]
[346433603,1734975055916,-500.0,0.00018361,2]
[346433604,1734975055926,-500.0,0.00018361,2]
[346433605,1734975055938,-2979.17,0.00018361,2]
[346433606,1734975055948,-501.46357423,0.00018361,2]
[346433607,1734975055958,-509.21122186,0.00018361,2]
[346433608,1734975055968,-189.80450358,0.00018361,2]
[346433609,1734975055977,-500.0,0.00018361,2]
[346433610,1734975055987,-500.0,0.00018361,2]
[346433611,1734975055997,-500.0,0.00018361,2]
[346433612,1734975056007,-1147.29,0.00018361,2]
[346433613,1734975056021,-263.62447774,0.00018361,2]
[346433614,1734975056030,-500.0,0.00018361,2]
[346433615,1734975056039,-500.0,0.00018361,2]
[346433616,1734975056048,-768.39,0.00018361,2]
[346433617,1734975056057,-500.0,0.00018361,2]
[346433618,1734975056067,-627.77,0.00018361,2]
[346433619,1734975056076,-500.0,0.00018361,2]
[346433620,1734975056085,-500.0,0.00018361,2]
[346433621,1734975056097,-700.01,0.00018361,2]
[346433622,1734975056107,-500.0,0.00018361,2]
[346433623,1734975056116,-500.0,0.00018361,2]
[346433624,1734975056126,-506.32380574,0.00018361,2]
[346433625,1734975056136,-1836.88,0.00018361,2]
[346433626,1734975056147,-500.0,0.00018361,2]
[346433627,1734975056157,-2751.66,0.00018361,2]
[346433628,1734975056167,-241.59839,0.00018361,2]
[346433629,1734975056176,-500.0,0.00018361,2]
[346433630,1734975056187,-241.59839,0.00018361,2]
[346433631,1734975056196,-500.0,0.00018361,2]
[346433632,1734975056206,-2128.82,0.00018361,2]
[346433633,1734975056216,-500.0,0.00018361,2]
[346433634,1734975056226,-500.0,0.00018361,2]
[346433635,1734975056236,-2292.97,0.00018361,2]
[346433636,1734975056246,-500.0,0.00018361,2]
[346433637,1734975056256,-794.84,0.00018361,2]
[346433638,1734975056267,-500.0,0.00018361,2]
[346433639,1734975056277,-3266.43,0.00018361,2]
[346433640,1734975056286,-500.0,0.00018361,2]
[346433641,1734975056296,-6507.75,0.00018361,2]
[346433642,1734975056306,-1298.71,0.00018361,2]
[346433643,1734975056316,-533.62858797,0.00018361,2]
[346433644,1734975056326,-3570.35,0.00018361,2]
[346433645,1734975056336,-19195.37,0.00018361,2]
[346433646,1734975056349,-1842.76,0.00018361,2]
[346433647,1734975056359,-2990.97,0.00018361,2]
[346433648,1734975056369,-500.0,0.00018361,2]
[346433649,1734975056379,-500.0,0.00018361,2]
[346433650,1734975056388,-500.0,0.00018361,2]
[346433651,1734975056399,-4519.45,0.00018361,2]
[346433652,1734975056408,-1004.9,0.00018361,2]
[346433653,1734975056418,-1607.2,0.00018361,2]
[346433654,1734975056428,-5592.12,0.00018361,2]
[346433655,1734975056438,-710.68,0.00018361,2]
[346433656,1734975056447,-500.0,0.00018361,2]
[346433657,1734975056458,-3127.03,0.00018361,2]
[346433658,1734975056468,-503.70191212,0.00018361,2]
[346433659,1734975056478,-500.0,0.00018361,2]
[346433660,1734975056488,-7663.3,0.00018361,2]
[346433661,1734975056498,-500.0,0.00018361,2]
[346433662,1734975056507,-500.0,0.00018361,2]
[346433663,1734975056517,-2242.05,0.00018361,2]
[346433664,1734975056527,-500.0,0.00018361,2]
[346433665,1734975056536,-1500.08,0.00018361,2]
[346433666,1734975056547,-500.0,0.00018361,2]
[346433667,1734975056556,-500.0,0.00018361,2]
[346433668,1734975056566,-975.34,0.00018361,2]
[346433669,1734975056576,-500.0,0.00018361,2]
[346433670,1734975056585,-590.17462165,0.00018361,2]
[346433671,1734975056598,-500.0,0.00018361,2]
[346433672,1734975056608,-500.0,0.00018361,2]
[346433673,1734975056618,-897.18,0.00018361,2]
[346433674,1734975056628,-508.81027517,0.00018361,2]
[346433675,1734975056637,-1093.0,0.00018361,2]
[346433676,1734975056647,-500.0,0.00018361,2]
[346433677,1734975056657,-2015.85,0.00018361,2]
[346433678,1734975056668,-3784.71,0.00018361,2]
[346433679,1734975056678,-500.0,0.00018361,2]
[346433680,1734975056687,-500.0,0.00018361,2]
[346433681,1734975056697,-503.07538177,0.00018361,2]
[346433682,1734975056707,-3441.16,0.00018361,2]
[346433683,1734975056716,-2682.49,0.00018361,2]
[346433684,1734975056726,-500.0,0.00018361,2]
[346433685,1734975056736,-1569.3,0.00018361,2]
[346433686,1734975056745,-502.28238846,0.00018361,2]
[346433687,1734975056755,-394.04542273,0.00018361,2]
[346433688,1734975056765,-500.0,0.00018361,2]
[346433689,1734975056775,-500.0,0.00018361,2]
[346433690,1734975056788,-507.58774291,0.00018361,2]
[346433691,1734975056798,-150.0,0.00018364,2]
[346433692,1734975056808,-150.0,0.00018366,2]
[346433693,1734975056818,-2029.83,0.0001837,2]
[346433694,1734975056830,-784.08,0.0001837,2]
[346433695,1734975056841,-500.0,0.0001837,2]
[346433696,1734975056851,-500.0,0.0001837,2]
[346433697,1734975056860,-4539.23,0.0001837,2]
[346433698,1734975056872,-568.57,0.0001837,2]
[346433699,1734975056881,-713.59,0.0001837,2]
[346433700,1734975056891,-500.0,0.0001837,2]
[346433701,1734975056901,-1682.41,0.0001837,2]
[346433702,1734975056911,-5800.0,0.00018375,2]
[346433703,1734975056920,-150.0,0.00018375,2]
[346433704,1734975056930,-300.0,0.00018378,2]
[346433705,1734975056939,-1925.188234,0.00018379,2]
[346433706,1734975056949,-1925.188234,0.00018379,2]
[346433707,1734975056959,-151.0,0.00018379,2]
[346433708,1734975056969,-1175.324182,0.00018379,2]
[346433709,1734975056979,-1175.324182,0.00018379,2]
[346433710,1734975056989,-153.621546,0.00018379,2]
[346433711,1734975057000,-4965.89,0.00018379,2]
[346433712,1734975057010,-4330.11,0.00018379,2]
[346433713,1734975057020,-3701.77,0.00018379,2]
[346433714,1734975057030,-1616.95,0.00018379,2]
[346433715,1734975057040,-7286.95,0.00018379,2]
[346433716,1734975057051,-8956.44,0.00018379,2]
[346433717,1734975057061,-824.08,0.00018379,2]
[346433718,1734975057071,-9372.51,0.00018379,2]
[346433719,1734975057081,-30141.27,0.00018379,2]
[346433720,1734975057093,-5768.39,0.00018379,2]
[346433721,1734975057102,-8768.28,0.00018379,2]
[346433722,1734975057114,-13554.13,0.00018379,2]
[346433723,1734975057125,-11556.38,0.00018379,2]
[346433724,1734975057136,-6307.38,0.00018379,2]
[346433725,1734975057147,-11920.59,0.00018379,2]
[346433726,1734975057157,-3804.8,0.00018379,2]
[346433727,1734975057171,-36949.45,0.00018379,2]